Cogmind - Beta 13 @@@ ROGUE MODE // 2024.04.27 @ 22:52:19 Player: dp-fld Result: Self-destructed Performance ------------- Evolutions (3) 1500 Regions Visited (4) 800 Robots Destroyed (90) 450 Value Destroyed (2964) 2964 Prototype IDs (22) 440 Alien Tech Used (0) 0 Bonus (382) 382 TOTAL SCORE: 6536 Bonus ------- High Alert Combat Kills 382 Cogmind --------- Core Integrity 528/700 Matter 228/300 Energy 290/290 System Corruption 0% Temperature Danger (474) Movement Rolling (120) Ox2 Location -7/Factory Parts ------- > --- POWER (1) -------- Improved Deuterium Engine > --- PROPULSION (3) --- Armored Wheel Armored Wheel > --- UTILITY (6) ------ Improved Cooling System High-capacity Storage Unit Advanced Visual Processing Unit Layered Light Armor Plating Layered Light Armor Plating Hacking Suite > --- WEAPON (3) ------- Mini Assault Cannon Mini Grenade Launcher > --- INVENTORY (20) --- Improved Deuterium Engine Improved Treads Advanced Treads Advanced Treads Advanced Treads Improved Cooling System Terrain Scanner Advanced Terrain Scan Processor Utility Shielding Layered Light Armor Plating Rainbow Chip Heavy EM Shotgun Heavy Particle Gun Heavy Particle Gun Ion Cannon Enhanced Autogun Flak Cannon Mini Grenade Launcher Heavy Hammer Katana Peak State ------------ > --- POWER ------------ Light Nuclear Core > --- PROPULSION ------- Advanced Treads Advanced Treads Advanced Treads > --- UTILITY ---------- Improved Cooling System High-capacity Storage Unit Advanced Visual Processing Unit Layered Light Armor Plating Layered Light Armor Plating Hacking Suite > --- WEAPON ----------- Heavy EM Shotgun Heavy Particle Gun Heavy Hammer > --- INVENTORY -------- Improved Deuterium Engine Light Treads Improved Treads Improved Treads Improved Cooling System Terrain Scanner Advanced Terrain Scan Processor Improved Propulsion Shielding Utility Shielding Layered Light Armor Plating Layered Light Armor Plating Rainbow Chip Heavy Particle Gun Ion Cannon Heavy Assault Rifle Enhanced Autogun Flak Cannon Mini Grenade Launcher Mini Grenade Launcher Katana [Rating: 47] Favorites ----------- Power Light Nuclear Core Engine Improved Ion Engine Power Core Light Nuclear Core Propulsion Light Treads Treads Light Treads Leg Aluminum Leg Wheel Armored Wheel Utility Large Storage Unit Device Seismic Detector Storage Large Storage Unit Processor Advanced Visual Processing Unit Hackware Hacking Suite Protection Light Armor Plating Weapon Light Cannon Energy Gun Heavy Particle Gun Ballistic Gun Assault Rifle Ballistic Cannon Light Cannon Launcher Mini Grenade Launcher Impact Weapon Heavy Hammer Slashing Weapon Ripper Build | -11 -10 -10 -8 -7 ------- Run | Yrd Mat Sub Mat Fac Slots Evolved 6 | . . . 4 2 Power . | . . . . . Propulsion 1 | . . . 1 . Utility 4 | . . . 2 2 Weapon 1 | . . . 1 . Parts Attached 99 | 1 20 12 52 14 Power 9 | . 1 3 4 1 Engine 7 | . . 3 3 1 Core 2 | . 1 . 1 . Reactor . | . . . . . Propulsion 36 | . 8 1 21 6 Treads 26 | . 2 1 20 3 Leg 6 | . 6 . . . Wheel 4 | . . . 1 3 Hover . | . . . . . Flight . | . . . . . Utility 23 | 1 3 2 12 5 Device 8 | 1 2 1 4 . Storage 2 | . 1 . 1 . Processor 2 | . . . 1 1 Hackware 1 | . . . . 1 Protection 10 | . . 1 6 3 Artifact . | . . . . . Weapon 31 | . 8 6 15 2 Energy Gun 6 | . . 1 5 . Energy Cannon . | . . . . . Ballistic Gun 10 | . 5 2 3 . Ballistic Cannon 8 | . 3 2 2 1 Launcher 4 | . . 1 2 1 Special Weapon . | . . . . . Impact Weapon 2 | . . . 2 . Slashing Weapon 1 | . . . 1 . Piercing Weapon . | . . . . . Special Melee Weapon . | . . . . . Unidentified Prototypes 3 | . . . 3 . Parts Lost 22 | . . 5 13 4 Power 4 | . . 1 2 1 Propulsion 7 | . . . 6 1 Utility 5 | . . 1 3 1 Weapon 6 | . . 3 2 1 Highest Loss Streak 4 | . . 3 4 2 To Critical Strikes . | . . . . . Average Slot Usage (%) 98 | . 98 99 98 98 Engine 6 | . 1 12 7 1 Core 4 | . 12 . 1 4 Treads 20 | . 11 28 25 8 Leg 4 | . 16 . . . Wheel 1 | . . . . 14 Device 11 | . 13 6 14 7 Storage 11 | . 14 14 9 7 Processor 1 | . . . 1 7 Protection 7 | . . 7 9 14 Energy Gun 5 | . . . 11 10 Ballistic Gun 6 | . 11 5 5 . Ballistic Cannon 9 | . 16 16 3 3 Launcher 2 | . . 5 2 . Impact Weapon 1 | . . . 2 6 Naked Turns . | . . . . . Heaviest Build 70 | 13 32 39 69 70 Greatest Support 69 | 20 40 40 69 69 Greatest Overweight (x) 4 | . 4 . 1 2 Average Overweight (x) . | . . . . . Largest Inventory Capacity 20 | 8 15 15 20 20 Average Capacity 14 | 8 10 15 16 20 Most Carried 20 | 6 13 15 20 20 Average Carried 13 | 6 8 14 15 19 Final Capacity 20 | 8 15 15 20 20 Final Carried 20 | 6 13 12 20 20 Class Distribution -------------------- 53% | Mutant 16% | Scavenger-Mutant 12% | Tank 7% | Derelict-Mutant 5% | Scavenger-Gunner 5% | Scavenger-Tank Dominant Class ---------------- Mutant | -10/Materials Mutant | -10/Subcaves Tank | -8/Materials Mutant | -7/Factory Resources | -11 -10 -10 -8 -7 ----------- Run | Yrd Mat Sub Mat Fac Matter Collected 2470 | 234 456 376 1121 283 Remotely . | . . . . . Salvage Created 2942 | 81 311 133 1985 432 Parts 172 | 1 28 17 99 27 Haulers Intercepted 3 | . . . 3 . Recyclers Shooed . | . . . . . Parts Field Recycled . | . . . . . Retrieved Matter . | . . . . . Parts Self-Destructed 10 | . . 10 . . Prevented . | . . . . . Kills | -11 -10 -10 -8 -7 ------- Run | Yrd Mat Sub Mat Fac Combat Hostiles Destroyed 76 | . 11 10 44 11 Guns 38 | . 9 . 25 4 Cannons 28 | . 2 7 13 6 AOE 9 | . . 3 5 1 Classes Destroyed 14 | 2 4 2 5 1 Worker 2 | . . . . 2 Builder 2 | . 1 . 1 . Tunneler 2 | 1 . . 1 . Hauler 3 | . . . 3 . Recycler 3 | 1 . . 1 1 Operator 2 | . 1 . 1 . Swarmer 18 | . 6 3 5 4 Grunt 29 | . 5 . 22 2 Brawler 3 | . . . 3 . Duelist 2 | . . . 1 1 Protector 2 | . . . 1 1 Sentry 14 | . . 1 11 2 Hunter 2 | . . . 1 1 Subdweller 6 | . . 6 . . Best Kill Streak 7 | 1 3 3 7 5 Combat Bots Only 7 | . 3 3 7 4 Max Kills in Single Turn 4 | 1 1 2 3 4 Gunslinging . | . . . . . Exploded 2 | . . 2 2 1 Melee . | . . . . . Uniques/NPCs Destroyed . | . . . . . Combat | -11 -10 -10 -8 -7 -------- Run | Yrd Mat Sub Mat Fac Hostile Shots Fired 520 | . 60 62 256 142 Missed 156 | . 18 9 85 44 Damage Taken 5521 | . 375 1016 2928 1202 Core 717 | . 61 160 324 172 Absorbed by Shields . | . . . . . Regen/Repaired (Parts) 15 | . 15 . . . Core Remaining (%) 50 | 100 . 11 41 . Volleys Fired 244 | 4 41 49 115 35 Largest 3 | 2 2 2 3 3 Hottest 149 | 40 70 89 149 133 Shots Fired 480 | 8 82 74 258 58 Gun 297 | 8 61 4 198 26 Cannon 169 | . 21 66 52 30 Launcher 14 | . . 4 8 2 Special . | . . . . . Kinetic 326 | 8 82 71 135 30 Thermal 136 | . . . 115 21 Explosive 10 | . . . 8 2 Electromagnetic 8 | . . 3 . 5 Robot Hit Streak 20 | 3 4 17 20 8 Robot Miss Streak 6 | 1 6 4 5 5 Penetration Max . | . . . . . Secondary Targets 3 | . . . 3 . Max Gunslinging Chain 1 | . . . 1 . Shots Hit Robots 310 | 6 34 52 183 35 Core Hits 160 | 3 16 16 93 32 Critical Kills . | . . . . . Critical Parts Destroyed 2 | . . . 2 . Critical Strikes 10 | . 1 1 5 3 Burn 3 | . . . 2 1 Blast 5 | . 1 1 1 2 Smash 2 | . . . 2 . Melee Attacks 11 | . . . 9 2 Impact 9 | . . . 7 2 Slashing 2 | . . . 2 . Piercing . | . . . . . Sneak Attacks 1 | . . . 1 . Combat Hostiles . | . . . . . Follow-up Attacks . | . . . . . Damage Inflicted 7800 | 73 485 1415 4478 1349 Guns 3308 | 73 326 76 2562 271 Cannons 2356 | . 156 903 759 538 Explosions 1961 | . . 436 985 540 Melee 172 | . . . 172 . Ramming 3 | . 3 . . . Kinetic 4217 | 73 482 1365 1759 538 Thermal 1754 | . . . 1562 192 Explosive 1525 | . . . 985 540 Electromagnetic 129 | . . 50 . 79 Impact 79 | . . . 79 . Slashing 93 | . . . 93 . Piercing . | . . . . . Highest Corruption . | . . . . . Average Corruption . | . . . . . Corruption Purged . | . . . . . Corruption Blocked . | . . . . . Overload Shots . | . . . . . Overflow Damage 130 | . 21 . 109 . Projectiles 23 | . 21 . 2 . Explosions 7 | . . . 7 . Melee 100 | . . . 100 . Knockbacks 29 | . 5 9 10 5 Impact . | . . . . . Kinetic 26 | . 4 9 9 4 Secondary 3 | . 1 . 1 1 Self-Inflicted Damage 109 | . . 19 90 . Shots 3 | . . 1 2 . Rammed . | . . . . . Targets Rammed 1 | . 1 . . . Kicked 1 | . 1 . . . Crushed . | . . . . . Highest Temperature 564 | . 51 . 192 564 Average Temperature 66 | . 18 . 34 219 Received Heat Transfer 1887 | . 75 117 1323 372 Effects 6 | . . . . 6 Shutdowns 1 | . . . . 1 Interference 2 | . . . . 2 Damage (major) 3 | . . . . 3 Siege Activations . | . . . . . Robots Corrupted . | . . . . . Combat Hostiles . | . . . . . Parts Fried 2 | . . . 2 . Impact Corruptions 2 | . . . 2 . Robots Melted . | . . . . . Combat Hostiles . | . . . . . Parts Melted 4 | . . . 4 . Heat Transferred 3657 | . . . 3231 426 Parts Sabotaged . | . . . . . Parts Stolen . | . . . . . Parts Stripped . | . . . . . Power Chain Reactions . | . . . . . Alert | -11 -10 -10 -8 -7 ------- Run | Yrd Mat Sub Mat Fac Peak Influence 817 | 10 252 . 817 660 Initial 371 | . 6 . . 371 Average 324 | 5 110 . 446 458 Maximum Alert Level 3 | . 1 . 3 2 Low Security (%) 37 | 100 83 . 13 . Level 1 19 | . 16 . 25 9 Level 2 37 | . . . 50 90 Level 3 5 | . . . 10 . Level 4 . | . . . . . Level 5 . | . . . . . High Security . | . . . . . Max Security . | . . . . . Squads Dispatched 17 | . 2 . 11 4 Investigation 2 | . . . 1 1 Extermination . | . . . . . Reinforcement 6 | . 2 . 2 2 Assault 3 | . . . 2 1 Garrison 6 | . . . 6 . Intercept . | . . . . . Searches Triggered . | . . . . . Construction Impeded 2 | . . . 1 1 Haulers Reinforced 1 | . . . . 1 Active Scanning Responses . | . . . . . Cargo Convoy Interrupts . | . . . . . Stealth | -11 -10 -10 -8 -7 --------- Run | Yrd Mat Sub Mat Fac Distress Signals 8 | . 2 . 3 3 Communications Jammed . | . . . . . Distress Signals . | . . . . . Times Spotted 112 | . 23 11 57 21 Peak Tracking Total 7 | . 4 3 6 7 Tactical Retreats 5 | . 2 . 1 2 Traps | -11 -10 -10 -8 -7 ------- Run | Yrd Mat Sub Mat Fac Traps Triggered 5 | . 4 . . 1 Indirectly . | . . . . . Trap Hack Attempts . | . . . . . Triggered . | . . . . . Disarmed . | . . . . . Reprogrammed . | . . . . . Reused . | . . . . . Traps Extracted . | . . . . . Installed . | . . . . . Triggered . | . . . . . Machines | -11 -10 -10 -8 -7 ---------- Run | Yrd Mat Sub Mat Fac Machines Disabled 6 | . 1 1 4 . Max in Single Turn 2 | . 1 1 2 . Garrison Access 1 | . . . . 1 Machines Repaired . | . . . . . Machines Dismantled . | . . . . . Machines Sabotaged . | . . . . . Overloaded Fab Kills . | . . . . . Hacking | -11 -10 -10 -8 -7 --------- Run | Yrd Mat Sub Mat Fac Machines Accessed 18 | . 6 1 9 2 Terminals 13 | . 5 . 7 1 Fabricators . | . . . . . Repair Stations 2 | . 1 . 1 . Recycling Units . | . . . . . Scanalyzers . | . . . . . Garrison Access 2 | . . . 1 1 Total Hacks 46 | . 17 1 22 6 Successful 25 | . 8 1 12 4 Failed 21 | . 9 . 10 2 Catastrophic 1 | . . . 1 . Database Lockouts . | . . . . . Manual 21 | . 8 . 12 1 Terminals 36 | . 14 . 18 4 Fabricators . | . . . . . Repair Stations 5 | . 3 . 2 . Recycling Units . | . . . . . Scanalyzers . | . . . . . Garrison Access 4 | . . . 2 2 Terminal Hacks 17 | . 5 1 8 3 Part Schematic 3 | . . . . 3 Prototype ID Bank 5 | . 2 . 3 . Level Access Points 1 | . . . 1 . Branch Access Points 1 | . . . 1 . Terminal Index 1 | . 1 . . . Locate Traps 1 | . . . 1 . Dispatch Records 1 | . . . 1 . Recall Reinforcements 1 | . . . 1 . Hauler Manifests 1 | . 1 . . . Registered Components 1 | . 1 . . . Derelict Proto ID Bank 1 | . . 1 . . Fabricator Hacks . | . . . . . Repair Station Hacks 3 | . 2 . 1 . Scan Component 2 | . 1 . 1 . Repair 1 | . 1 . . . Recycling Unit Hacks . | . . . . . Scanalyzer . | . . . . . Garrison Access Hacks 1 | . . . . 1 Seal Access 1 | . . . . 1 Unauthorized Hacks 4 | . 1 . 3 . Terminals 4 | . 1 . 3 . Assimilate 1 | . . . 1 . Botnet 3 | . 1 . 2 . Fabricators . | . . . . . Repair Stations . | . . . . . Recycling Units . | . . . . . Scanalyzers . | . . . . . Garrison Access . | . . . . . Data Cores Recovered . | . . . . . Used . | . . . . . Hacking Detections 15 | . 5 . 9 1 Full Trace Events 1 | . . . 1 . Feedback Events . | . . . . . Feedback Blocked . | . . . . . Robot Schematics Acquired . | . . . . . Robots Built . | . . . . . Authchips . | . . . . . Time . | . . . . . Total Robot Build Rating . | . . . . . Part Schematics Acquired 3 | . . . . 3 Parts Built . | . . . . . Authchips . | . . . . . Time . | . . . . . Total Part Build Rating . | . . . . . Parts Repaired 1 | . 1 . . . Time 26 | . 26 . . . Parts Recycled . | . . . . . Recycled Matter . | . . . . . Retrieved Matter . | . . . . . Retrieved Components . | . . . . . Parts Scanalyzed . | . . . . . Part Schematics Acquired . | . . . . . Parts Damaged . | . . . . . Bothacking | -11 -10 -10 -8 -7 ------------ Run | Yrd Mat Sub Mat Fac Used RIF Installer . | . . . . . Robots Hacked . | . . . . . Non-combat . | . . . . . Combat . | . . . . . Robot Hacks Applied . | . . . . . Relay Couplers Released . | . . . . . Fabnet Peak Effective % . | . . . . . Robots Rewired . | . . . . . Allies Hacked . | . . . . . Hacks Repelled . | . . . . . Allies | -11 -10 -10 -8 -7 -------- Run | Yrd Mat Sub Mat Fac Total Allies 1 | . . . 1 . Largest Group 1 | . . . 1 . Highest-Rated Group 10 | . . . 10 . Highest-Rated Ally 10 | . . . 10 . Total Orders . | . . . . . Ally Attacks . | . . . . . Total Damage . | . . . . . Kills . | . . . . . Allies Corrupted . | . . . . . Allies Melted . | . . . . . Intel | -11 -10 -10 -8 -7 ------- Run | Yrd Mat Sub Mat Fac Robot Analysis Total . | . . . . . Derelict Logs Recovered . | . . . . . Drone Launches . | . . . . . Drone Recoveries . | . . . . . Exploration | -11 -10 -10 -8 -7 ------------- Run | Yrd Mat Sub Mat Fac Turns Passed 5100 | 52 1352 1238 1930 528 Spaces Moved 2615 | 33 824 672 786 300 Core 2 | . 2 . . . Treads 1869 | . 313 672 786 98 Legs 542 | 33 509 . . . Wheels 202 | . . . . 202 Hover . | . . . . . Flight . | . . . . . Fastest Speed 105 | 120 120 160 160 105 Average Speed 150 | 120 135 160 170 122 Slowest Speed 250 | 120 250 160 249 160 Overloaded Moves . | . . . . . Propulsion Burnouts . | . . . . . Robots Hopped . | . . . . . Cave-ins Triggered . | . . . . . Exploration Rate (%) 47 | 4 100 54 68 12 Regions Visited 4 Branch Regions 1 Pre-discovered Areas . | . . . . . Known Exits Taken 1 | . . . 1 . Unknown Exits Taken 3 | 1 1 1 . . Scrap Searched 7 | . . 7 . . Spaces Dug 6 | . . . 4 2 Terrain Destroyed 129 | . . 58 59 12 Melee 6 | . . . 4 2 Projectile 8 | . . 1 5 2 AOE 115 | . . 57 50 8 Terrain Rammed . | . . . . . Walls Destroyed . | . . . . . Machines Disabled . | . . . . . Actions | -11 -10 -10 -8 -7 --------- Run | Yrd Mat Sub Mat Fac Total 3338 | 37 978 766 1151 406 Wait 210 | . 64 12 105 29 Move 2611 | 32 823 671 785 300 Hop . | . . . . . Pick Up 76 | . 14 10 40 12 Fast Attach 26 | 1 12 1 10 2 Attach 19 | . . 5 12 2 Detach 2 | . . 1 1 . Swap 54 | . 8 6 30 10 Drop 84 | . 15 11 44 14 Fire 244 | 4 41 49 115 35 Melee 11 | . . . 9 2 Ram . | . . . . . Kick 1 | . 1 . . . Crush . | . . . . . Escape Stasis . | . . . . . Rewire . | . . . . . Trap . | . . . . . Miscellaneous . | . . . . . Route ------- -11/Scrapyard -10/Materials (discovered 5 exits: [*Mat x3] / [*Min] / *Sub) -10/Subcaves -8/Materials (discovered 4 exits: *Fac x3 / *Sto) -7/Factory History --------- Turn | Location | Event 1 | -11/Scrapyard | Discovered new exit (range 3) 53 | -11/Scrapyard | Entered Materials 231 | -10/Materials | Discovered new exit (range 15) 489 | -10/Materials | Build established: Scavenger-Mutant 581 | -10/Materials | Discovered new exit (range 3) 702 | -10/Materials | Discovered new exit (range 5) 837 | -10/Materials | Discovered new exit (range 16) 1044 | -10/Materials | Repaired Seismic Detector 1160 | -10/Materials | Build established: Mutant 1391 | -10/Materials | Discovered new exit (range 10) 1405 | -10/Materials | Entered Subcaves 1408 | -10/Subcaves | Shifting Twisted Machinery released Riot Gun 1416 | -10/Subcaves | Shifting Twisted Machinery released Sub. Optics 1477 | -10/Subcaves | Ambushed by Subdweller buried in earth 1501 | -10/Subcaves | A swath of the cavern ceiling suddenly collapsed 1629 | -10/Subcaves | Core integrity fell below 50% 1968 | -10/Subcaves | Shifting Twisted Machinery released Sub. Shrapnel Launcher 1969 | -10/Subcaves | Shifting Twisted Machinery released Sub. Laser 2347 | -10/Subcaves | Visited 4L-MR0's lab 2368 | -10/Subcaves | Found Rainbow Chip 2449 | -10/Subcaves | Ambushed by Subdweller buried in earth 2471 | -10/Subcaves | Core integrity fell below 20% 2510 | -10/Subcaves | Lost 3 parts (1u2w) 2544 | -10/Subcaves | A swath of the cavern ceiling suddenly collapsed 2617 | -10/Subcaves | Discovered new exit (range 11) 2643 | -10/Subcaves | Entered Materials 2643 | -8/Materials | Evolved 4 slots: Propulsion x1, Utility x2, Weapon x1 2745 | -8/Materials | Garrison activated, responded to threat 2985 | -8/Materials | Build established: Derelict-Mutant 3079 | -8/Materials | Garrison activated, responded to threat 3093 | -8/Materials | Lost 4 parts (1p1n1u1w) 3473 | -8/Materials | Discovered new exit (range 15) 3683 | -8/Materials | Lost 3 parts (1n1u1w) 3843 | -8/Materials | First assault squad dispatched 4152 | -8/Materials | Build established: Tank 4354 | -8/Materials | Core integrity fell below 50% 4386 | -8/Materials | Lost 4 parts (1p2n1u) 4395 | -8/Materials | Destroyed 7 combat bots 4459 | -8/Materials | Identified exit to Storage 4495 | -8/Materials | Discovered new exit (range 16) 4552 | -8/Materials | Identified exit to Factory 4573 | -8/Materials | Entered Factory 4573 | -7/Factory | Evolved 2 slots: Utility x2 4800 | -7/Factory | Build established: Mutant 4973 | -7/Factory | First assault squad dispatched 5101 | -7/Factory | Self-destructed Last Messages --------------- 05072_ ALERT: Hostile activity reported, dispatching reinforcements to area. 05074_ I-36 Angel destroyed. 05074_ R-06 Scavenger destroyed. 05074_ K-01 Serf destroyed. 05084_ Arm. Wheel destroyed. 05085_ L-41 Fighter destroyed. 05092_ Hvy. Particle Gun destroyed. 05092_ Critical hit (Burn: +37). 05093_ Overheating: Mni. Assault Cannon damaged (-70). 05093_ Overheating: Lyr. Light Armor Plating damaged (-24). 05093_ Overheating: Adv. Visual Processing Unit damaged (-7). 05094_ Critical hit (Burn: +37). 05094_ M-28 Smith repairs G-50 Soldier. 05095_ Power failure, Imp. Deuterium Engine shutdown. 05095_ Overheating: System interference. 05095_ Adv. Visual Processing Unit temporarily disabled. 05095_ Mni. Assault Cannon temporarily disabled. 05096_ M-28 Smith repairs Adv. Heat Sink. 05099_ M-28 Smith repairs G-47 Trooper. Map ----- +----------------------------------------------------+ | %[ ?????????????? | | = % ??????????????? | | """ """ "?????????????? | | %= """ """ ""????????????? | | !=[ """ """ """ ??????????? | | ############+############ #????????? | | ???# [ #??# """ """ """ #????????? | | ???# % #??# """ """ """ ?????? | | ???# #??# """ """ """ #????? | | ???# #??# +????? | | ???# #??# #????? | | ???# #?? % #????? | | ???# #?? % #############?????? | | ???##################### %! ???????????????? | | ??????????# !=! ?????????????????? | | ??????????# *% +??????????????????? | | ??????????# #??????????????????? | | ??????????# #??????????????????? | | ??????????# #??????????????????? | | ??????????# #####m##### #??????????????????? | | ??????????# ?# %/g!! # #??????????????????? | | ??????????# ???# %! # #??????????????????? | | ??????????#?????# %!g | # #??????????????????? | | ????????????????# g # #??????????????????? | | ????????????????# """"" # #??????????????????? | | ????????????????# """""@# #??????????????????? | | ????????????????# """ # #??????????????????? | | ????????????????# # #??????????????????? | | ????????????????########### #??????????????????? | | ????????????????????????????? #??????????????????? | | ????????????????????????????? #??????????????????? | | ?????????????????????????????????????????????????? | | ?????????????????????????????????????????????????? | | ?????????????????????????????????????????????????? | | ?????????????????????????????????????????????????? | | ?????????????????????????????????????????????????? | | ?????????????????????????????????????????????????? | | ?????????????????????????????????????????????????? | | ?????????????????????????????????????????????????? | | ?????????????????????????????????????????????????? | | ?????????????????????????????????????????????????? | | ?????????????????????????????????????????????????? | | ?????????????????????????????????????????????????? | | ?????????????????????????????????????????????????? | | ?????????????????????????????????????????????????? | | ?????????????????????????????????????????????????? | | ?????????????????????????????????????????????????? | | ?????????????????????????????????????????????????? | | ?????????????????????????????????????????????????? | | ?????????????????????????????????????????????????? | +----------------------------------------------------+ Best States ------------- Heat Dissipation 61 Energy Generation 16 Energy Capacity 290 Matter Stores 300 Matter Capacity 300 Sight Range 20 Terrain Scan Density 10 Armor Coverage 375 Utility Shielding 33 Evasion (%) 55 Targeting Accuracy 6 Recoil Reduction 3 Kinecelleration 30 Offensive Hacking 10 Item Schematics ----------------- Arm. Huge Wheel | -7/Factory | Hacked Mic. Nuclear Core | -7/Factory | Hacked Adv. Signal Interpreter | -7/Factory | Hacked Robot Schematics ------------------ None Fabricated ------------ Nothing Alien Tech Used ----------------- None Achievements -------------- None Challenges ------------ None Game ------ Seed SurgeAbsorptionActivator Manual? 0 Play Time 00:59:38 Cumulative 336.8 hours Start 2024.04.27 @ 17:54:13 End 2024.04.27 @ 22:52:19 Sessions 5 Manual Loads 0 Difficulty Rogue Special Mode None Game No. 113 Rogue 74 Adventurer 0 Explorer 39 Win Type - Total 11 Types 9/1/1/0/0/0/0/0/0 Lore% 68 Gallery% 75 Achievement% 67 Wizard Run 0 Options --------- Layout 0 ASCII 1 Keyboard 1 Movement Arrows Keybinds 0 Fullscreen 2 Font 36/Smallcaps Map View 76x50 Zoom Use 0% Tactical HUD 1 Map Filters NONE Filters NONE Steam 1 RUN: a338dc86-7e8b-4860-8656-839c69dad6b6